[Event "*** SCC Grand Prix: Titled Tuesday Blitz"]
[Site "Chess.com"]
[Date "2020.07.14"]
[Round "4"]
[White "MergenKakabaev"]
[Black "JoliyRoger"]
[Result "0-1"]
[WhiteElo "2421"]
[BlackElo "2274"]
[TimeControl "180+1"]
[EndTime "10:40:35 PDT"]
[Termination "JoliyRoger won by resignation"]

1. e4 {[%clk 0:02:52.9]} 1... c6 {[%clk 0:02:58.7]} 2. d4 {[%clk 0:02:52.4]}
2... d5 {[%clk 0:02:58.7]} 3. e5 {[%clk 0:02:52.4]} 3... Bf5 {[%clk 0:02:58]} 4.
h4 {[%clk 0:02:51.8]} 4... Qb6 {[%clk 0:02:57.1]} 5. g4 {[%clk 0:02:45.1]} 5...
Bd7 {[%clk 0:02:57.4]} 6. Nc3 {[%clk 0:02:44.2]} 6... e6 {[%clk 0:02:57.8]} 7.
Nf3 {[%clk 0:02:15.2]} 7... c5 {[%clk 0:02:56.9]} 8. Bd3 {[%clk 0:02:11.3]} 8...
cxd4 {[%clk 0:02:49]} 9. Ne2 {[%clk 0:02:11]} 9... Nc6 {[%clk 0:02:49.2]} 10. a3
{[%clk 0:02:10.3]} 10... Nge7 {[%clk 0:01:55.7]} 11. h5 {[%clk 0:02:10.3]} 11...
Ng8 {[%clk 0:01:50.7]} 12. b4 {[%clk 0:02:02]} 12... Nh6 {[%clk 0:01:36.8]} 13.
g5 {[%clk 0:01:56.1]} 13... Nf5 {[%clk 0:01:25.7]} 14. Bxf5 {[%clk 0:01:55.9]}
14... exf5 {[%clk 0:01:26.2]} 15. Nexd4 {[%clk 0:01:56.5]} 15... a5 {[%clk
0:01:07.4]} 16. Rb1 {[%clk 0:01:29.2]} 16... axb4 {[%clk 0:01:04.8]} 17. axb4
{[%clk 0:01:30]} 17... Be7 {[%clk 0:00:53.3]} 18. c3 {[%clk 0:01:27]} 18... Nxd4
{[%clk 0:00:42.4]} 19. Qxd4 {[%clk 0:01:25.9]} 19... Qc7 {[%clk 0:00:35.9]} 20.
Bf4 {[%clk 0:01:21.4]} 20... Be6 {[%clk 0:00:35.8]} 21. O-O {[%clk 0:01:20.2]}
21... O-O {[%clk 0:00:33]} 22. Qd3 {[%clk 0:01:11.7]} 22... Rfc8 {[%clk
0:00:32.3]} 23. Rfc1 {[%clk 0:01:10.6]} 23... Ra3 {[%clk 0:00:31.3]} 24. Bd2
{[%clk 0:00:58.1]} 24... Qb8 {[%clk 0:00:23.1]} 25. Qe3 {[%clk 0:00:53.2]} 25...
Rc4 {[%clk 0:00:20.4]} 26. Nd4 {[%clk 0:00:52.9]} 26... Bxb4 {[%clk 0:00:17.7]}
27. Rxb4 {[%clk 0:00:42.6]} 27... Rxb4 {[%clk 0:00:17.5]} 28. cxb4 {[%clk
0:00:42.9]} 28... Rxe3 {[%clk 0:00:16.6]} 29. Bxe3 {[%clk 0:00:43.1]} 29... h6
{[%clk 0:00:13.2]} 30. gxh6 {[%clk 0:00:41.4]} 30... gxh6 {[%clk 0:00:12.5]} 31.
f4 {[%clk 0:00:36.4]} 31... Kh7 {[%clk 0:00:12.3]} 32. Kf2 {[%clk 0:00:35.6]}
32... Qg8 {[%clk 0:00:09.1]} 33. Rg1 {[%clk 0:00:34.8]} 33... Qa8 {[%clk
0:00:09.5]} 34. Rc1 {[%clk 0:00:29]} 34... Qa2+ {[%clk 0:00:09.6]} 35. Rc2
{[%clk 0:00:29.1]} 35... Qa3 {[%clk 0:00:09.9]} 36. Nxe6 {[%clk 0:00:27.1]}
36... fxe6 {[%clk 0:00:10]} 37. Rc7+ {[%clk 0:00:26.8]} 37... Kg8 {[%clk
0:00:10.5]} 38. Rxb7 {[%clk 0:00:27.1]} 38... Qa2+ {[%clk 0:00:09.3]} 39. Kg3
{[%clk 0:00:20.4]} 39... Qb3 {[%clk 0:00:09.4]} 40. Kf2 {[%clk 0:00:19.2]} 40...
Qc2+ {[%clk 0:00:08.8]} 41. Ke1 {[%clk 0:00:19.4]} 41... Qc3+ {[%clk 0:00:08.3]}
42. Bd2 {[%clk 0:00:18.5]} 42... Qg3+ {[%clk 0:00:08.5]} 43. Kd1 {[%clk
0:00:18.7]} 43... d4 {[%clk 0:00:08.5]} 44. Rb8+ {[%clk 0:00:18.1]} 44... Kf7
{[%clk 0:00:08.7]} 45. b5 {[%clk 0:00:18.4]} 45... Qf3+ {[%clk 0:00:07.7]} 46.
Kc1 {[%clk 0:00:18.5]} 46... Qa3+ {[%clk 0:00:07.3]} 47. Kc2 {[%clk 0:00:17.2]}
47... Qa4+ {[%clk 0:00:07.6]} 48. Kd3 {[%clk 0:00:17.2]} 48... Qb3+ {[%clk
0:00:07.5]} 49. Kxd4 {[%clk 0:00:17]} 49... Qd5+ {[%clk 0:00:08]} 50. Kc3 {[%clk
0:00:17.1]} 50... Qf3+ {[%clk 0:00:07.9]} 51. Kc2 {[%clk 0:00:17.1]} 51... Qe4+
{[%clk 0:00:07.7]} 52. Kb2 {[%clk 0:00:17.5]} 52... Qd4+ {[%clk 0:00:07.4]} 53.
Bc3 {[%clk 0:00:17.9]} 53... Qf2+ {[%clk 0:00:07.7]} 54. Kb3 {[%clk 0:00:17.7]}
54... Qxf4 {[%clk 0:00:08]} 55. b6 {[%clk 0:00:17.9]} 55... Qe4 {[%clk
0:00:08.4]} 56. b7 {[%clk 0:00:17.5]} 56... Qd5+ {[%clk 0:00:08.8]} 57. Ka3
{[%clk 0:00:17.8]} 57... Qb5 {[%clk 0:00:08.9]} 58. Bb4 {[%clk 0:00:16.4]} 58...
Kg7 {[%clk 0:00:08.8]} 59. Kb3 {[%clk 0:00:15.8]} 59... Kh7 {[%clk 0:00:09]} 60.
Kc3 {[%clk 0:00:16.1]} 60... Qc6+ {[%clk 0:00:08.7]} 61. Kb2 {[%clk 0:00:15.6]}
61... Qb6 {[%clk 0:00:09.1]} 62. Ka3 {[%clk 0:00:15.2]} 62... Qa7+ {[%clk
0:00:09]} 63. Kb3 {[%clk 0:00:15.5]} 63... Qxb8 {[%clk 0:00:09.6]} 0-1

[Event "*** SCC Grand Prix: Titled Tuesday Blitz"]
[Site "Chess.com"]
[Date "2020.07.14"]
[Round "4"]
[White "Muguet7"]
[Black "poppy73"]
[Result "1-0"]
[WhiteElo "2417"]
[BlackElo "2231"]
[TimeControl "180+1"]
[EndTime "10:40:36 PDT"]
[Termination "Muguet7 won by checkmate"]

1. Nf3 {[%clk 0:03:00.9]} 1... Nf6 {[%clk 0:02:57.3]} 2. b3 {[%clk 0:03:00.7]}
2... e6 {[%clk 0:02:53.7]} 3. Bb2 {[%clk 0:02:59.6]} 3... b6 {[%clk 0:02:54.1]}
4. e3 {[%clk 0:02:58.6]} 4... Bb7 {[%clk 0:02:54.5]} 5. d4 {[%clk 0:02:58.8]}
5... Be7 {[%clk 0:02:54.7]} 6. Bd3 {[%clk 0:02:59]} 6... c5 {[%clk 0:02:53.8]}
7. O-O {[%clk 0:02:58.8]} 7... O-O {[%clk 0:02:53.1]} 8. Nbd2 {[%clk 0:02:54.1]}
8... d5 {[%clk 0:02:52.1]} 9. c4 {[%clk 0:02:53]} 9... Nbd7 {[%clk 0:02:44.2]}
10. Qe2 {[%clk 0:02:52.8]} 10... Rc8 {[%clk 0:02:39.7]} 11. Rfd1 {[%clk
0:02:51.9]} 11... Ne4 {[%clk 0:02:33.9]} 12. dxc5 {[%clk 0:02:44.8]} 12... Nexc5
{[%clk 0:02:17.1]} 13. Bc2 {[%clk 0:02:31.9]} 13... Bf6 {[%clk 0:02:16.1]} 14.
Bxf6 {[%clk 0:02:30.1]} 14... Qxf6 {[%clk 0:02:16.2]} 15. cxd5 {[%clk
0:02:25.5]} 15... Bxd5 {[%clk 0:02:14.3]} 16. e4 {[%clk 0:02:23.6]} 16... Bb7
{[%clk 0:02:09.6]} 17. Nc4 {[%clk 0:02:23.2]} 17... Ba6 {[%clk 0:01:55.6]} 18.
e5 {[%clk 0:02:19.8]} 18... Qe7 {[%clk 0:01:55.3]} 19. Qe3 {[%clk 0:02:13.3]}
19... Bxc4 {[%clk 0:01:50.3]} 20. bxc4 {[%clk 0:02:12.9]} 20... Rfd8 {[%clk
0:01:49.4]} 21. Ng5 {[%clk 0:02:12.5]} 21... Nf8 {[%clk 0:01:47.9]} 22. Nf3
{[%clk 0:01:57.8]} 22... Rxd1+ {[%clk 0:01:43.1]} 23. Rxd1 {[%clk 0:01:57.2]}
23... Rd8 {[%clk 0:01:43.7]} 24. Rxd8 {[%clk 0:01:55.9]} 24... Qxd8 {[%clk
0:01:43.9]} 25. h4 {[%clk 0:01:56.1]} 25... g6 {[%clk 0:01:36.3]} 26. h5 {[%clk
0:01:54.8]} 26... Qc7 {[%clk 0:01:28]} 27. Ng5 {[%clk 0:01:53.3]} 27... Ncd7
{[%clk 0:01:17.3]} 28. f4 {[%clk 0:01:39.4]} 28... Qxc4 {[%clk 0:01:05.7]} 29.
Qd2 {[%clk 0:01:29.4]} 29... Qc5+ {[%clk 0:00:44.4]} 30. Kh2 {[%clk 0:01:28.5]}
30... Qd5 {[%clk 0:00:42.9]} 31. Qf2 {[%clk 0:01:21.1]} 31... Qc5 {[%clk
0:00:36.8]} 32. Qe2 {[%clk 0:01:17.2]} 32... Qd4 {[%clk 0:00:24.3]} 33. g3
{[%clk 0:01:16.2]} 33... Kg7 {[%clk 0:00:20.8]} 34. Ne4 {[%clk 0:01:10.5]} 34...
h6 {[%clk 0:00:19.5]} 35. hxg6 {[%clk 0:01:09]} 35... Nxg6 {[%clk 0:00:18.9]}
36. Nd6 {[%clk 0:01:09.1]} 36... Nc5 {[%clk 0:00:13.6]} 37. Bxg6 {[%clk
0:00:53.8]} 37... fxg6 {[%clk 0:00:13.7]} 38. Qf3 {[%clk 0:00:46.5]} 38... Qd5
{[%clk 0:00:10.4]} 39. Qxd5 {[%clk 0:00:36]} 39... exd5 {[%clk 0:00:10.2]} 40.
Nb5 {[%clk 0:00:35.8]} 40... a5 {[%clk 0:00:07.9]} 41. Kg2 {[%clk 0:00:33.4]}
41... Kf7 {[%clk 0:00:05.9]} 42. Kf3 {[%clk 0:00:32.9]} 42... Ne4 {[%clk
0:00:02.7]} 43. g4 {[%clk 0:00:31.9]} 43... Nc3 {[%clk 0:00:02.5]} 44. Nxc3
{[%clk 0:00:30.9]} 44... d4 {[%clk 0:00:02.9]} 45. Nb5 {[%clk 0:00:30.5]} 45...
d3 {[%clk 0:00:02.6]} 46. Ke3 {[%clk 0:00:30.8]} 46... h5 {[%clk 0:00:01.9]} 47.
gxh5 {[%clk 0:00:30.5]} 47... gxh5 {[%clk 0:00:02.2]} 48. Kxd3 {[%clk
0:00:30.8]} 48... h4 {[%clk 0:00:02.2]} 49. Ke3 {[%clk 0:00:30.1]} 49... Ke6
{[%clk 0:00:01.9]} 50. Kf3 {[%clk 0:00:29.2]} 50... Kf5 {[%clk 0:00:02.2]} 51.
Nd4+ {[%clk 0:00:29.2]} 51... Kg6 {[%clk 0:00:02]} 52. f5+ {[%clk 0:00:29.4]}
52... Kf7 {[%clk 0:00:02.6]} 53. Kg4 {[%clk 0:00:29.1]} 53... h3 {[%clk
0:00:02.3]} 54. Kxh3 {[%clk 0:00:29.1]} 54... a4 {[%clk 0:00:02.9]} 55. Kg4
{[%clk 0:00:28.9]} 55... a3 {[%clk 0:00:02.3]} 56. Kg5 {[%clk 0:00:29]} 56...
Ke7 {[%clk 0:00:02.4]} 57. f6+ {[%clk 0:00:28.2]} 57... Kf8 {[%clk 0:00:02.1]}
58. e6 {[%clk 0:00:28.2]} 58... Ke8 {[%clk 0:00:02.4]} 59. Nc6 {[%clk
0:00:27.7]} 59... Kf8 {[%clk 0:00:02.6]} 60. Kg6 {[%clk 0:00:26.6]} 60... Ke8
{[%clk 0:00:01.6]} 61. f7+ {[%clk 0:00:26.2]} 61... Kf8 {[%clk 0:00:01.4]} 62.
e7# {[%clk 0:00:27]} 1-0

[Event "*** SCC Grand Prix: Titled Tuesday Blitz"]
[Site "Chess.com"]
[Date "2020.07.14"]
[Round "4"]
[White "dalmatinac101"]
[Black "Azatic"]
[Result "0-1"]
[WhiteElo "2782"]
[BlackElo "2631"]
[TimeControl "180+1"]
[EndTime "10:40:38 PDT"]
[Termination "Azatic won on time"]

1. d4 {[%clk 0:03:00.9]} 1... Nf6 {[%clk 0:02:58.5]} 2. Nc3 {[%clk 0:03:01]}
2... d5 {[%clk 0:02:54.2]} 3. Bf4 {[%clk 0:03:00.9]} 3... g6 {[%clk 0:02:54]} 4.
Qd2 {[%clk 0:03:00.3]} 4... Bg7 {[%clk 0:02:54.2]} 5. e3 {[%clk 0:02:55.1]} 5...
O-O {[%clk 0:02:53.7]} 6. h4 {[%clk 0:02:55.4]} 6... h5 {[%clk 0:02:53.3]} 7.
Nf3 {[%clk 0:02:53.9]} 7... c5 {[%clk 0:02:52.2]} 8. Ne5 {[%clk 0:02:54.1]} 8...
Nc6 {[%clk 0:02:51.2]} 9. O-O-O {[%clk 0:02:48.2]} 9... Qa5 {[%clk 0:02:17.2]}
10. Kb1 {[%clk 0:02:45]} 10... Bf5 {[%clk 0:02:15.4]} 11. Nxc6 {[%clk
0:02:39.6]} 11... bxc6 {[%clk 0:02:05.6]} 12. Nxd5 {[%clk 0:02:39.9]} 12...
Bxc2+ {[%clk 0:02:03.4]} 13. Ka1 {[%clk 0:02:23.1]} 13... Qxd2 {[%clk
0:01:45.7]} 14. Nxf6+ {[%clk 0:02:00.6]} 14... Bxf6 {[%clk 0:01:46.6]} 15. Rxd2
{[%clk 0:02:01.1]} 15... Bf5 {[%clk 0:01:42.7]} 16. Bd3 {[%clk 0:01:51.2]} 16...
Bxd3 {[%clk 0:01:40]} 17. Rxd3 {[%clk 0:01:51.5]} 17... cxd4 {[%clk 0:01:39.8]}
18. exd4 {[%clk 0:01:52.4]} 18... Rfd8 {[%clk 0:01:40]} 19. Be3 {[%clk
0:01:20.7]} 19... c5 {[%clk 0:01:33.5]} 20. d5 {[%clk 0:01:17.3]} 20... c4
{[%clk 0:01:26.7]} 21. Rdd1 {[%clk 0:00:56.2]} 21... c3 {[%clk 0:01:03.2]} 22.
bxc3 {[%clk 0:00:45.5]} 22... Bxc3+ {[%clk 0:01:04.1]} 23. Kb1 {[%clk
0:00:45.8]} 23... Rdc8 {[%clk 0:00:43.8]} 24. Kc2 {[%clk 0:00:45.9]} 24... Bf6+
{[%clk 0:00:31.4]} 25. Kd3 {[%clk 0:00:45.1]} 25... Rc3+ {[%clk 0:00:31.3]} 26.
Ke2 {[%clk 0:00:43.8]} 26... Ra3 {[%clk 0:00:30.4]} 27. Rd2 {[%clk 0:00:43.7]}
27... Rd8 {[%clk 0:00:24.5]} 28. g3 {[%clk 0:00:41.8]} 28... Kg7 {[%clk
0:00:21.8]} 29. Rc1 {[%clk 0:00:38.7]} 29... Rd7 {[%clk 0:00:18.6]} 30. Rc6
{[%clk 0:00:36.2]} 30... Be5 {[%clk 0:00:15.7]} 31. Bc5 {[%clk 0:00:34.5]} 31...
Ra5 {[%clk 0:00:14]} 32. Ke3 {[%clk 0:00:24.9]} 32... Bf6 {[%clk 0:00:12.1]} 33.
Ke4 {[%clk 0:00:20.1]} 33... Rb7 {[%clk 0:00:12.4]} 34. Be3 {[%clk 0:00:17.8]}
34... Ra4+ {[%clk 0:00:12.1]} 35. Kf3 {[%clk 0:00:17.9]} 35... Rd7 {[%clk
0:00:12]} 36. Rc5 {[%clk 0:00:13.1]} 36... Ra6 {[%clk 0:00:10.9]} 37. Rdc2
{[%clk 0:00:11.4]} 37... Be5 {[%clk 0:00:11.1]} 38. Rd2 {[%clk 0:00:10.9]} 38...
Rf6+ {[%clk 0:00:11]} 39. Ke2 {[%clk 0:00:10.2]} 39... Rfd6 {[%clk 0:00:10.5]}
40. Ra5 {[%clk 0:00:08.3]} 40... a6 {[%clk 0:00:10.2]} 41. Ra4 {[%clk
0:00:07.7]} 41... Bf6 {[%clk 0:00:09]} 42. Bf4 {[%clk 0:00:07.1]} 42... Rxd5
{[%clk 0:00:09]} 43. Rxd5 {[%clk 0:00:08]} 43... Rxd5 {[%clk 0:00:09.7]} 44.
Rxa6 {[%clk 0:00:08.6]} 44... Rb5 {[%clk 0:00:10.2]} 45. a4 {[%clk 0:00:08.3]}
45... Rb2+ {[%clk 0:00:10.3]} 46. Kf3 {[%clk 0:00:08.8]} 46... Ra2 {[%clk
0:00:10.5]} 47. Be3 {[%clk 0:00:09]} 47... Be5 {[%clk 0:00:09.7]} 48. Ra8 {[%clk
0:00:08.7]} 48... Bc3 {[%clk 0:00:09.9]} 49. Ra7 {[%clk 0:00:08]} 49... e5
{[%clk 0:00:09.7]} 50. Bb6 {[%clk 0:00:06.2]} 50... Bd4 {[%clk 0:00:07.7]} 51.
Bxd4 {[%clk 0:00:05]} 51... exd4 {[%clk 0:00:08.6]} 52. a5 {[%clk 0:00:04.7]}
52... d3 {[%clk 0:00:08.9]} 53. Ke3 {[%clk 0:00:05]} 53... d2 {[%clk 0:00:09.1]}
54. Ke2 {[%clk 0:00:05.2]} 54... Kf6 {[%clk 0:00:09.6]} 55. a6 {[%clk
0:00:04.3]} 55... Ke6 {[%clk 0:00:10]} 56. Ra8 {[%clk 0:00:04.3]} 56... Kf5
{[%clk 0:00:10.7]} 57. a7 {[%clk 0:00:02.6]} 57... f6 {[%clk 0:00:11]} 58. f3
{[%clk 0:00:01.7]} 58... g5 {[%clk 0:00:02.8]} 0-1

[Event "*** SCC Grand Prix: Titled Tuesday Blitz"]
[Site "Chess.com"]
[Date "2020.07.14"]
[Round "4"]
[White "otrov-11"]
[Black "yuliagok"]
[Result "1-0"]
[WhiteElo "2371"]
[BlackElo "2109"]
[TimeControl "180+1"]
[EndTime "10:40:40 PDT"]
[Termination "otrov-11 won on time"]

1. d4 {[%clk 0:03:00.9]} 1... Nf6 {[%clk 0:02:58.9]} 2. c4 {[%clk 0:02:59.8]}
2... e6 {[%clk 0:02:56.4]} 3. Nf3 {[%clk 0:02:57.4]} 3... b6 {[%clk 0:02:55.1]}
4. g3 {[%clk 0:02:56.1]} 4... Bb7 {[%clk 0:02:53.1]} 5. Bg2 {[%clk 0:02:55.5]}
5... Bb4+ {[%clk 0:02:51.8]} 6. Bd2 {[%clk 0:02:54.2]} 6... Be7 {[%clk 0:02:51]}
7. O-O {[%clk 0:02:41.9]} 7... O-O {[%clk 0:02:48.7]} 8. Bf4 {[%clk 0:02:35.7]}
8... Na6 {[%clk 0:02:44]} 9. Nc3 {[%clk 0:02:34.2]} 9... c5 {[%clk 0:02:38.2]}
10. d5 {[%clk 0:02:33.1]} 10... exd5 {[%clk 0:02:36.2]} 11. cxd5 {[%clk
0:02:31.4]} 11... d6 {[%clk 0:02:35.3]} 12. e4 {[%clk 0:02:28.5]} 12... Nh5
{[%clk 0:02:30.6]} 13. Be3 {[%clk 0:02:26.9]} 13... Nc7 {[%clk 0:02:27.2]} 14.
a4 {[%clk 0:02:24.6]} 14... Nf6 {[%clk 0:02:10.5]} 15. h3 {[%clk 0:02:10.9]}
15... a6 {[%clk 0:02:08.4]} 16. Qe2 {[%clk 0:01:34.3]} 16... Re8 {[%clk
0:02:02.8]} 17. Nd2 {[%clk 0:01:32.5]} 17... Qd7 {[%clk 0:01:55.1]} 18. f4
{[%clk 0:01:30.7]} 18... b5 {[%clk 0:01:50.4]} 19. axb5 {[%clk 0:01:25.5]} 19...
axb5 {[%clk 0:01:49.3]} 20. Rfe1 {[%clk 0:01:25.9]} 20... b4 {[%clk 0:01:46.6]}
21. Rxa8 {[%clk 0:01:22.9]} 21... Rxa8 {[%clk 0:01:44.9]} 22. Ncb1 {[%clk
0:01:23.3]} 22... Ba6 {[%clk 0:01:43.8]} 23. Qf2 {[%clk 0:01:15.1]} 23... c4
{[%clk 0:01:39.3]} 24. g4 {[%clk 0:01:13.9]} 24... Qa4 {[%clk 0:01:26.4]} 25. g5
{[%clk 0:01:13]} 25... Nd7 {[%clk 0:01:25.3]} 26. Rc1 {[%clk 0:01:12.2]} 26...
Qa2 {[%clk 0:01:01.1]} 27. Bf1 {[%clk 0:01:07.9]} 27... Qxb2 {[%clk 0:00:57.4]}
28. Nxc4 {[%clk 0:01:01]} 28... Qxf2+ {[%clk 0:00:55.7]} 29. Bxf2 {[%clk
0:01:01.9]} 29... Bxc4 {[%clk 0:00:53.8]} 30. Bxc4 {[%clk 0:01:02.8]} 30... Na6
{[%clk 0:00:48.1]} 31. Nd2 {[%clk 0:00:58.8]} 31... Ndc5 {[%clk 0:00:46.6]} 32.
Rb1 {[%clk 0:00:55.7]} 32... Rb8 {[%clk 0:00:44.5]} 33. e5 {[%clk 0:00:42.4]}
33... f6 {[%clk 0:00:42.2]} 34. gxf6 {[%clk 0:00:41.7]} 34... gxf6 {[%clk
0:00:41.3]} 35. e6 {[%clk 0:00:42]} 35... f5 {[%clk 0:00:39.8]} 36. Bd4 {[%clk
0:00:40.9]} 36... h5 {[%clk 0:00:36]} 37. Kf2 {[%clk 0:00:40.8]} 37... Kh7
{[%clk 0:00:34.7]} 38. Ra1 {[%clk 0:00:35.3]} 38... Rb6 {[%clk 0:00:24.6]} 39.
Nb3 {[%clk 0:00:29.1]} 39... Bh4+ {[%clk 0:00:19.1]} 40. Kf3 {[%clk 0:00:27.8]}
40... Nxb3 {[%clk 0:00:16.9]} 41. Bxb3 {[%clk 0:00:28.6]} 41... Nc5 {[%clk
0:00:13.9]} 42. Bxc5 {[%clk 0:00:25.7]} 42... dxc5 {[%clk 0:00:13.2]} 43. Rc1
{[%clk 0:00:26.6]} 43... Rd6 {[%clk 0:00:11.1]} 44. Rxc5 {[%clk 0:00:25.7]}
44... Ra6 {[%clk 0:00:10.7]} 45. Rb5 {[%clk 0:00:23.5]} 45... Ra3 {[%clk
0:00:09.8]} 46. Rxb4 {[%clk 0:00:23.9]} 46... Be1 {[%clk 0:00:09.4]} 47. Rb7+
{[%clk 0:00:23.4]} 47... Kh6 {[%clk 0:00:07.6]} 48. e7 {[%clk 0:00:22.4]} 48...
Ra8 {[%clk 0:00:06.6]} 49. d6 {[%clk 0:00:22.8]} 49... Bh4 {[%clk 0:00:04.4]}
50. Bf7 {[%clk 0:00:20.3]} 50... Bxe7 {[%clk 0:00:03.2]} 51. dxe7 {[%clk
0:00:19.4]} 51... Ra3+ {[%clk 0:00:02.2]} 52. Rb3 {[%clk 0:00:19.5]} 52... Rxb3+
{[%clk 0:00:01.7]} 53. Bxb3 {[%clk 0:00:20.4]} 53... Kg7 {[%clk 0:00:01.2]} 54.
e8=Q {[%clk 0:00:21.3]} 54... h4 {[%clk 0:00:01.2]} 55. Qh5 {[%clk 0:00:21]} 1-0

[Event "*** SCC Grand Prix: Titled Tuesday Blitz"]
[Site "Chess.com"]
[Date "2020.07.14"]
[Round "4"]
[White "Benjoneliere44"]
[Black "ChelsieMonica"]
[Result "1-0"]
[WhiteElo "2611"]
[BlackElo "2425"]
[TimeControl "180+1"]
[EndTime "10:40:41 PDT"]
[Termination "Benjoneliere44 won by resignation"]

1. d4 {[%clk 0:03:00.9]} 1... Nf6 {[%clk 0:02:57.7]} 2. Bf4 {[%clk 0:03:00]}
2... c5 {[%clk 0:02:56.3]} 3. d5 {[%clk 0:02:59.4]} 3... g6 {[%clk 0:02:54.8]}
4. Nc3 {[%clk 0:02:51.5]} 4... d6 {[%clk 0:02:53.9]} 5. e4 {[%clk 0:02:51.4]}
5... Bg7 {[%clk 0:02:54]} 6. Be2 {[%clk 0:02:41.5]} 6... a6 {[%clk 0:02:52.5]}
7. a4 {[%clk 0:02:40.8]} 7... h6 {[%clk 0:02:51.2]} 8. Nf3 {[%clk 0:02:38.1]}
8... g5 {[%clk 0:02:51.1]} 9. Bg3 {[%clk 0:02:34.5]} 9... Nbd7 {[%clk
0:02:44.3]} 10. e5 {[%clk 0:02:32.5]} 10... dxe5 {[%clk 0:02:37.2]} 11. Nxe5
{[%clk 0:02:33.4]} 11... h5 {[%clk 0:02:30.1]} 12. h4 {[%clk 0:02:28.9]} 12...
g4 {[%clk 0:02:29.8]} 13. Qd3 {[%clk 0:02:00.2]} 13... Bh6 {[%clk 0:02:13.4]}
14. d6 {[%clk 0:01:56.2]} 14... O-O {[%clk 0:02:02.1]} 15. O-O {[%clk
0:01:48.4]} 15... exd6 {[%clk 0:01:37.8]} 16. Qxd6 {[%clk 0:01:43.9]} 16... Nxe5
{[%clk 0:01:36.8]} 17. Qxe5 {[%clk 0:01:42.9]} 17... Re8 {[%clk 0:01:21.6]} 18.
Qxc5 {[%clk 0:01:39.3]} 18... Qe7 {[%clk 0:01:15.4]} 19. Bd6 {[%clk 0:01:27.7]}
19... Qd7 {[%clk 0:01:14.6]} 20. Rad1 {[%clk 0:01:24.3]} 20... Qc6 {[%clk
0:01:05.6]} 21. Qd4 {[%clk 0:01:07.1]} 21... Bg7 {[%clk 0:01:04.6]} 22. Bc4
{[%clk 0:00:58.8]} 22... Ne4 {[%clk 0:01:00.6]} 23. Qd5 {[%clk 0:00:46.1]} 23...
Qxd5 {[%clk 0:00:47.5]} 24. Rxd5 {[%clk 0:00:47]} 24... Nxc3 {[%clk 0:00:41]}
25. bxc3 {[%clk 0:00:46.4]} 25... Be6 {[%clk 0:00:33.8]} 26. Rc5 {[%clk
0:00:46.3]} 26... Bxc4 {[%clk 0:00:34]} 27. Rxc4 {[%clk 0:00:47]} 27... Rac8
{[%clk 0:00:33.8]} 28. Rxc8 {[%clk 0:00:44.3]} 28... Rxc8 {[%clk 0:00:34.7]} 29.
Rb1 {[%clk 0:00:43.8]} 29... Rxc3 {[%clk 0:00:33.6]} 30. Rxb7 {[%clk 0:00:42.6]}
30... Rxc2 {[%clk 0:00:34.2]} 31. Bg3 {[%clk 0:00:29.8]} 31... a5 {[%clk
0:00:33.3]} 32. Rb5 {[%clk 0:00:28.9]} 32... Bc3 {[%clk 0:00:30.5]} 33. Rxh5
{[%clk 0:00:28.3]} 33... f6 {[%clk 0:00:26.5]} 34. Rc5 {[%clk 0:00:26.7]} 34...
Kg7 {[%clk 0:00:21.8]} 35. Rc4 {[%clk 0:00:26.8]} 35... Rc1+ {[%clk 0:00:18.1]}
36. Kh2 {[%clk 0:00:26.6]} 36... Kf7 {[%clk 0:00:15.6]} 37. Rxg4 {[%clk
0:00:26.2]} 37... Bb4 {[%clk 0:00:15.4]} 38. h5 {[%clk 0:00:26.3]} 38... Bf8
{[%clk 0:00:14.2]} 39. Bf4 {[%clk 0:00:22.3]} 39... Rc4 {[%clk 0:00:13.2]} 40.
g3 {[%clk 0:00:17.6]} 40... Rxa4 {[%clk 0:00:10.3]} 41. Kh3 {[%clk 0:00:18.1]}
41... Ra1 {[%clk 0:00:10.3]} 42. Kg2 {[%clk 0:00:17.4]} 42... Ra4 {[%clk
0:00:10.8]} 43. Rh4 {[%clk 0:00:15.8]} 43... Kg8 {[%clk 0:00:09.7]} 44. Rh1
{[%clk 0:00:15.9]} 44... Kh7 {[%clk 0:00:10.1]} 45. Rb1 {[%clk 0:00:15.1]} 45...
Rb4 {[%clk 0:00:10.5]} 46. Rc1 {[%clk 0:00:11.5]} 46... a4 {[%clk 0:00:11]} 47.
Rc7+ {[%clk 0:00:11.5]} 47... Kh8 {[%clk 0:00:10.9]} 48. Ra7 {[%clk 0:00:11.7]}
48... a3 {[%clk 0:00:09.1]} 49. Ra8 {[%clk 0:00:12.1]} 49... Kg7 {[%clk
0:00:08.4]} 50. h6+ {[%clk 0:00:12.5]} 50... Kf7 {[%clk 0:00:08.3]} 51. h7
{[%clk 0:00:12.9]} 51... Bg7 {[%clk 0:00:08.2]} 52. Bh6 {[%clk 0:00:13.1]} 52...
Bh8 {[%clk 0:00:07.9]} 53. Rxh8 {[%clk 0:00:11.9]} 53... Kg6 {[%clk 0:00:08.8]}
54. Ra8 {[%clk 0:00:10.5]} 54... Kxh7 {[%clk 0:00:08.6]} 55. Bf8 {[%clk
0:00:10.8]} 55... Rb3 {[%clk 0:00:08.2]} 56. Bxa3 {[%clk 0:00:11.2]} 56... Kg6
{[%clk 0:00:06.8]} 57. Bc5 {[%clk 0:00:11.3]} 57... Kf5 {[%clk 0:00:07.7]} 58.
Be3 {[%clk 0:00:11.7]} 58... Rb2 {[%clk 0:00:07.8]} 59. Ra4 {[%clk 0:00:11.9]}
59... Rc2 {[%clk 0:00:08.3]} 60. Rf4+ {[%clk 0:00:12.4]} 60... Kg6 {[%clk
0:00:08.7]} 61. Kf3 {[%clk 0:00:12.7]} 61... f5 {[%clk 0:00:08.6]} 62. Rd4
{[%clk 0:00:12.8]} 62... Kf6 {[%clk 0:00:08.3]} 63. Bf4 {[%clk 0:00:13.2]} 63...
Ke6 {[%clk 0:00:08.5]} 64. Rd6+ {[%clk 0:00:13]} 64... Ke7 {[%clk 0:00:09.1]}
65. Ra6 {[%clk 0:00:13.7]} 65... Rc3+ {[%clk 0:00:09.5]} 66. Kg2 {[%clk
0:00:14]} 66... Rb3 {[%clk 0:00:10.4]} 67. Be3 {[%clk 0:00:13.6]} 67... Kf7
{[%clk 0:00:10.5]} 68. Kf3 {[%clk 0:00:14]} 68... Rc3 {[%clk 0:00:10.6]} 69. Kf4
{[%clk 0:00:14.3]} 69... Rc5 {[%clk 0:00:10.3]} 70. Bxc5 {[%clk 0:00:13.9]} 1-0